fUSD/lending_fUSD_20240214
["ID","MTS","AMOUNT","RATE_DAILY","PERIOD"]
[314036343,1707939037807,-1037.0,0.00034868,2]
[314036344,1707939037816,-1948.0,0.00034868,2]
[314036345,1707939037826,-1232.0,0.00034868,2]
[314036346,1707939037835,-642.82900754,0.000349,2]
[314036347,1707939037845,-393.38,0.00034918,2]
[314036348,1707939037854,-9865.33333668,0.00034921,7]
[314036350,1707939038056,-2130.3855139,0.00034921,7]
[314036351,1707939038068,-2529.8154281,0.00034921,7]
[314036353,1707939038093,-400.0,0.00034921,7]
[314036372,1707939038229,-1358.90920143,0.00034921,7]
[314036377,1707939040275,-1906.32632824,0.00034793,2]
[314036378,1707939040330,-267.06454642,0.00034793,2]
[314036379,1707939041052,-494.91421966,0.00034793,2]
[314036380,1707939041062,-1254.0,0.00034868,2]
[314036381,1707939041072,-216.0,0.00034868,2]
[314036382,1707939041082,-11092.52863308,0.00034921,7]
[314036383,1707939041094,-243.26366261,0.00034921,7]
[314036384,1707939041103,-10593.45576424,0.00034931,2]
[314036385,1707939041115,-2957.24687556,0.00034931,2]
[314036386,1707939041165,-604.57016637,0.00034931,2]
[314036387,1707939041177,-15137.07714408,0.00034931,2]
[314036388,1707939041226,-537.10779889,0.00034931,2]
[314036389,1707939041239,-1099.72000002,0.00034931,2]
[314036444,1707939042894,-707.0,0.00034868,2]
[314036445,1707939042903,-654.26947775,0.00034931,2]
[314036446,1707939042922,-2573.13014704,0.00034931,2]
[314036447,1707939042941,-2756.5299557,0.00034931,2]
[314036448,1707939042961,-411.708297,0.00034931,2]
[314036449,1707939043022,-485.560998,0.00034931,2]
[314036450,1707939043035,-2146.28731678,0.00034931,2]
[314036451,1707939043046,-1612.51752374,0.00034931,2]
[314036454,1707939045707,-250.0,0.00034219,111]
[314036455,1707939045717,-352.8075711,0.00034917,2]
[314036456,1707939045729,-981.34497606,0.00034917,2]
[314036457,1707939045738,-558.5115099,0.00034931,2]
[314036458,1707939045762,-5052.65612485,0.00034931,2]
[314036459,1707939045830,-5976.22027108,0.00034931,2]
[314036460,1707939045839,-8920.067396,0.00034931,2]
[314036461,1707939045849,-153.75236828,0.00034968,2]
[314036462,1707939045858,-170.28426028,0.00034987,2]
[314036463,1707939045868,-10206.96313326,0.0003499,8]
[314036464,1707939045921,-45033.50841834,0.0003499,8]
[314036465,1707939045930,-20715.1768318,0.0003499,8]
[314036466,1707939045940,-9413.77127821,0.00035,15]
[314036467,1707939045953,-69561.08094495,0.00035,15]
[314036468,1707939045974,-572.05714798,0.00035,15]
[314036469,1707939045994,-2753.5,0.00035,15]
[314036470,1707939046005,-5602.04102741,0.00035,15]
[314036471,1707939046017,-12097.54960145,0.00035,15]
[314036472,1707939046026,-1813.28,0.00035,5]
[314036473,1707939046035,-1009.92497129,0.00035,5]
[314036475,1707939319608,-22132.0,0.000295,2]
[314036476,1707939319629,-156.27126398,0.000302,2]
[314036477,1707939319649,-170.14,0.000303,2]
[314036478,1707939319669,-156.27126388,0.00030727,2]
[314036479,1707939319891,-1000.0,0.00031577,2]
[314036480,1707939319911,-500.0,0.00031631,2]
[314036481,1707939319934,-9165.85537582,0.00031677,7]
[314036482,1707939319958,-26719.46209632,0.00031677,7]
[314036483,1707939805869,1000.0,0.000231,2]
[314036484,1707940052427,-550.0,0.00025,3]
[314036485,1707940052448,-600.0,0.00027,3]
[314036486,1707940052468,-650.0,0.00029,3]
[314036487,1707940052490,-158.19006432,0.000294,2]
[314036488,1707940052510,-150.0,0.00029499,2]
[314036489,1707940052530,-3201.0,0.000295,2]
[314036490,1707940052549,-24315.0,0.000295,2]
[314036491,1707940068948,-158.19006431,0.00029864,2]
[314036492,1707940068988,-1000.0,0.0003,7]
[314036493,1707940069010,-158.19006431,0.00030329,2]
[314036494,1707940069031,-150.0,0.00030677,2]
[314036495,1707940069054,-158.19006431,0.00030793,2]
[314036496,1707940069078,-343.41,0.00030838,2]
[314036497,1707940069100,-700.0,0.00031,3]
[314036498,1707940081718,-150.99,0.00031225,2]
[314036499,1707940081740,-150.0,0.00031225,2]
[314036500,1707940081763,-158.19006431,0.00031257,2]
[314036501,1707940081783,-833.57140238,0.000314,2]
[314036502,1707940081803,-150.0,0.000314,2]
[314036503,1707940081824,-1000.0,0.00031577,2]
[314036504,1707940081843,-3690.7356053,0.00031667,2]
[314036505,1707940081875,-1574.34267076,0.00031677,5]
[314036509,1707940137978,-163.02191033,0.00030677,2]
[314036510,1707940137999,-203.22520032,0.000313,2]
[314036511,1707940138020,-170.14,0.000314,2]
[314036512,1707940138039,-203.22520032,0.00031577,2]
[314036513,1707940138061,-237.28732924,0.00031677,5]
[314036514,1707940138082,-1832.89,0.00031677,5]
[314036515,1707940138102,-1781.27,0.00031677,5]
[314036516,1707940138122,-499.99,0.00031677,2]
[314036517,1707940138142,-850.12,0.00031677,2]
[314036518,1707940138162,-180.83,0.00031677,12]
[314036519,1707940138186,-23280.53790368,0.00031677,7]
[314036520,1707940138208,-19708.10955208,0.00031677,7]
[314036521,1707940138231,-889.35290403,0.00031677,7]
[314036529,1707940231856,-1974.8225,0.00031677,7]
[314036530,1707940231869,-898.82075343,0.00031677,7]
[314036531,1707940231878,-3138.40728781,0.00031677,7]
[314036532,1707940231890,-301.44505381,0.00031677,7]
[314036533,1707940231902,-3518.29048109,0.00031677,7]
[314036534,1707940231921,-146.47231298,0.00031677,7]
[314036535,1707940231930,-150.99,0.0003168,2]
[314036536,1707940231939,-13.97820624,0.00031721,2]
[314036537,1707940231950,-144.21185807,0.00031721,2]
[314036538,1707940231963,-354.22,0.0003178,2]
[314036539,1707940231972,-200.0,0.00032077,2]
[314036540,1707940231981,-2051.39,0.00032077,2]
[314036541,1707940231990,-250.0,0.00032098,2]
[314036542,1707940232000,-158.19006431,0.00032186,2]
[314036543,1707940232009,-1000.0,0.000323,2]
[314036544,1707940232018,-395.31118241,0.00032397,2]
[314036545,1707940232050,-1604.68881759,0.00032397,2]
[314036546,1707940232059,-697.33,0.0003244,2]
[314036547,1707940232068,-685.16,0.00032454,2]
[314036548,1707940232077,-166.74,0.00032579,2]
[314036549,1707940232087,-796.73,0.00032614,2]
[314036550,1707940232096,-164.58,0.00032614,2]
[314036551,1707940232106,-158.19006431,0.0003265,2]
[314036552,1707940232115,-5929.49,0.00032673,2]
[314036553,1707940232124,-11157.66,0.00032731,2]
[314036554,1707940232133,-250.0,0.00032756,2]
[314036555,1707940232142,-840.65,0.00032756,2]
[314036556,1707940232151,-250.0,0.00032756,2]
[314036557,1707940232160,-854.79,0.00032756,2]
[314036558,1707940232169,-750.0,0.00032756,2]
[314036559,1707940232178,-200.0,0.00032756,2]
[314036560,1707940232187,-150.57,0.00032877,2]
[314036561,1707940232196,-500.0,0.00032888,2]
[314036562,1707940232206,-154.2,0.00032935,2]
[314036565,1707940232215,-200.0,0.00032961,3]
[314036567,1707940232224,-312.258539,0.00032961,5]
[314036568,1707940232232,-203.02532488,0.00032978,4]
[314036569,1707940232241,-255.59919181,0.00032978,4]
[314036570,1707940232250,-773.00827872,0.00032978,4]
[314036571,1707940232260,-376.6106665,0.00032978,4]
[314036572,1707940232269,-313.00606627,0.00032978,4]
[314036573,1707940232278,-341.2,0.00032979,2]
[314036574,1707940232288,-343.41,0.00033102,2]
[314036575,1707940232297,-154.2,0.00033106,2]
[314036576,1707940232306,-158.19006431,0.00033114,2]
[314036577,1707940232315,-720.64,0.00033242,2]
[314036578,1707940232325,-154.2,0.00033278,2]
[314036579,1707940232334,-1054.32036913,0.000333,30]
[314036580,1707940232345,-154.2,0.0003345,2]
[314036581,1707940232354,-152.62,0.000335,2]
[314036582,1707940232363,-152.62,0.000335,2]
[314036583,1707940232373,-152.62,0.000335,2]
[314036584,1707940232382,-152.62,0.000335,2]
[314036585,1707940232391,-152.62,0.000335,2]
[314036586,1707940232400,-152.62,0.000335,2]
[314036587,1707940232409,-152.62,0.000335,2]
[314036588,1707940232418,-152.62,0.000335,2]
[314036589,1707940232427,-152.62,0.000335,2]
[314036590,1707940232436,-152.62,0.000335,2]
[314036591,1707940232445,-152.62,0.000335,2]
[314036592,1707940232455,-152.62,0.000335,2]
[314036593,1707940232463,-152.62,0.000335,2]
[314036594,1707940232472,-152.62,0.000335,2]
[314036595,1707940232481,-152.62,0.000335,2]
[314036596,1707940232490,-152.62,0.000335,2]
[314036597,1707940232499,-152.62,0.000335,2]
[314036598,1707940232508,-158.19006431,0.00033579,2]
[314036599,1707940232518,-154.2,0.00033621,2]
[314036600,1707940232527,-154.2,0.00033793,2]
[314036601,1707940232536,-154.2,0.00033964,2]
[314036602,1707940232545,-158.19006431,0.00034043,2]
[314036603,1707940232555,-154.2,0.00034136,2]
[314036604,1707940232563,-1000.0,0.000342,7]
[314036605,1707940232573,-154.2,0.00034308,2]
[314036606,1707940232582,-854.79,0.000344,2]
[314036607,1707940232592,-154.2,0.00034479,2]
[314036608,1707940232601,-158.19006431,0.00034507,2]
[314036609,1707940232611,-200.0,0.00034516,2]
[314036610,1707940232620,-1725.0038,0.00034611,2]
[314036611,1707940232629,-500.0,0.00034611,2]
[314036612,1707940232638,-200.0,0.00034611,10]
[314036613,1707940232647,-341.2,0.00034628,2]
[314036614,1707940232656,-5094.05466202,0.0003464,2]
[314036615,1707940232665,-605.21944,0.0003464,2]
[314036616,1707940232677,-1274.24,0.00034641,2]
[314036617,1707940232686,-430.729,0.00034641,2]
[314036618,1707940232695,-841.0,0.00034641,2]
[314036619,1707940232704,-1096.933,0.00034641,2]
[314036620,1707940232715,-952.0,0.00034641,2]
[314036621,1707940232724,-216.0,0.00034641,2]
[314036622,1707940232733,-1254.0,0.00034641,2]
[314036623,1707940232742,-1231.0,0.00034641,2]
[314036624,1707940232752,-1948.0,0.00034641,2]
[314036625,1707940232761,-429.0,0.00034641,2]
[314036626,1707940232771,-382.851,0.00034641,2]
[314036627,1707940232780,-176.59,0.00034641,2]
[314036628,1707940232800,-850.0,0.00034641,2]
[314036629,1707940232810,-343.0,0.00034641,2]
[314036630,1707940232819,-1138.0,0.00034641,2]
[314036631,1707940232829,-321.0,0.00034641,2]
[314036632,1707940232839,-150.0,0.00034641,2]
[314036633,1707940232848,-453.0,0.00034641,2]
[314036634,1707940232858,-19257.171,0.00034641,2]
[314036635,1707940232867,-4204.0,0.00034641,2]
[314036636,1707940232876,-7829.021,0.00034641,2]
[314036637,1707940232887,-2923.0,0.00034641,2]
[314036638,1707940232896,-4564.947,0.00034641,2]
[314036639,1707940232905,-2126.914,0.00034641,2]
[314036640,1707940232914,-151.4,0.00034641,2]
[314036641,1707940232925,-150.0,0.00034641,2]
[314036642,1707940232934,-150.0,0.00034641,2]
[314036643,1707940232943,-1035.0,0.00034641,2]
[314036644,1707940232952,-151.456,0.00034641,2]
[314036645,1707940232962,-150.638,0.00034641,2]
[314036646,1707940232971,-154.2,0.00034651,2]
[314036647,1707940232980,-1000.0,0.0003471,5]
[314036648,1707940232989,-12437.44257753,0.0003479,2]
[314036649,1707940232998,-3262.87900619,0.00034799,2]
[314036650,1707940233007,-200.0,0.00034851,2]
[314036651,1707940233017,-1996.8931,0.00034903,2]
[314036652,1707940233026,-610.68755722,0.00034952,2]
[314036653,1707940233035,-210.0,0.00034962,2]
[314036654,1707940233045,-980.5934,0.00034962,2]
[314036655,1707940233054,-1000.0,0.00034962,2]
[314036656,1707940233063,-159.81169846,0.00034968,2]
[314036657,1707940233073,-158.19006431,0.00034971,2]
[314036658,1707940233082,-34225.1216116,0.00034984,8]
[314036659,1707940233092,-1334.15254716,0.00034986,2]
[314036660,1707940233101,-22816.7477411,0.0003499,8]
[314036661,1707940233111,-85679.8517673,0.00034994,2]
[314036662,1707940233120,-197.4739308,0.00034994,2]
[314036663,1707940233130,-1704.8985056,0.00034994,2]
[314036664,1707940233138,-5882.3209126,0.00034994,2]
[314036665,1707940233147,-783.92502871,0.00035,5]
[314036666,1707940233157,-1784.01,0.00035,5]
[314036667,1707940233166,-1130.905776,0.00035,2]
[314036668,1707940233175,-11798.85615574,0.00035,2]
[314036669,1707940233184,-25618.67163844,0.00035,2]
[314036670,1707940233193,-286.0,0.00035,5]
[314036671,1707940233202,-673.854542,0.00035,2]
[314036672,1707940233212,-160.46331719,0.00035,7]
[314036673,1707940233221,-241.13472476,0.00035,2]
[314036674,1707940233230,-5704.18693527,0.00035008,8]
[314036675,1707940233239,-272.0,0.00035012,2]
[314036676,1707940233249,-514.2617961,0.00035017,2]
[314036677,1707940233258,-11408.3738705,0.00035042,8]
[314036678,1707940233267,-45633.4954822,0.00035042,8]
[314036679,1707940233277,-22816.7477411,0.00035048,8]
[314036680,1707940233286,-22816.7477411,0.00035052,8]
[314036681,1707940233295,-68450.2432232,0.00035052,8]
[314036682,1707940233305,-50000.0,0.00035062,3]
[314036683,1707940233314,-63627.26494445,0.00035062,10]
[314036684,1707940233328,-13062.36632758,0.00035062,10]
[314036685,1707940233341,-4805.83630706,0.00035062,10]
[314036686,1707940233352,-6592.33693226,0.00035062,10]
[314036687,1707940233365,-6324.51633643,0.00035062,10]
[314036688,1707940233384,-320.6391067,0.00035062,10]
[314036689,1707940233397,-254.21000005,0.00035062,10]
[314036690,1707940233409,-311.08000015,0.00035062,10]
[314036691,1707940233420,-409.47900183,0.00035062,10]
[314036692,1707940233431,-272.72700117,0.00035062,10]
[314036693,1707940233442,-770.0,0.00035062,10]
[314036694,1707940233454,-2431.44335424,0.00035062,10]
[314036695,1707940233465,-973.32883742,0.00035062,10]
[314036696,1707940233477,-639.29473813,0.00035062,10]
[314036701,1707940237874,-1000.0,0.000329,2]
[314036702,1707940237884,-2699.40129594,0.00035062,10]
[314036703,1707940237930,-289.30814126,0.00035062,10]
[314036704,1707940237987,-59593.25595259,0.00035062,10]
[314036705,1707940238045,-2235.87409787,0.00035062,10]
[314036731,1707940240450,-2864.24235611,0.00031677,7]
[314036732,1707940240459,-34387.63762487,0.00035062,10]
[314036733,1707940240469,-9235.70665212,0.00035068,2]
[314036734,1707940240561,-797.95569169,0.00035068,2]
[314036735,1707940241321,-296.12134139,0.00035068,2]
[314036736,1707940241374,-406.16546895,0.00035068,2]
[314036738,1707940241386,-1580.16720111,0.00035068,2]
[314036804,1707940242872,-933.97462137,0.00035068,2]
[314036806,1707940242884,-427.149998,0.00035068,2]
[314036808,1707940242895,-1502.81579274,0.00035068,2]
[314036817,1707940242967,-5218.77369504,0.00035068,2]
[314036820,1707940242978,-6877.42618486,0.00035068,2]
[314036828,1707940243046,-784.89644254,0.00035068,2]
[314036835,1707940243106,-3005.93701094,0.00035068,2]
[314036842,1707940243164,-5431.50898473,0.00035068,2]
[314036849,1707940243223,-1028.02,0.00035068,2]
[314036851,1707940243265,-1045.82126318,0.00035068,2]
[314036852,1707940243277,-3250.66936019,0.00035068,2]
[314036853,1707940243288,-1549.67590757,0.00035068,2]
[314036854,1707940243299,-5216.80981403,0.00035068,2]
[314036855,1707940243317,-344.10978337,0.00035068,2]
[314036872,1707940246011,-211.745,0.00034641,2]
[314036873,1707940246020,-645.35794195,0.00034967,9]
[314036874,1707940246030,-1924.45606416,0.00035068,2]
[314036875,1707940246175,-15587.55043602,0.00035068,2]
[314036876,1707940246184,-11150.084245,0.00035068,2]
[314036877,1707940246194,-500.0,0.00035089,15]
[314036878,1707940246204,-500.0,0.00035089,15]
[314036879,1707940246213,-500.0,0.00035089,15]
[314036880,1707940246222,-500.0,0.00035089,15]
[314036881,1707940246231,-556.37001867,0.00035089,15]
[314036882,1707940246240,-500.0,0.00035089,15]
[314036883,1707940246250,-500.0,0.00035089,15]
[314036884,1707940246259,-500.0,0.00035089,15]
[314036885,1707940246268,-500.0,0.00035089,15]
[314036886,1707940246277,-500.0,0.00035089,15]
[314036887,1707940246286,-500.0,0.00035089,15]
[314036888,1707940246295,-500.0,0.00035089,15]
[314036889,1707940246305,-250.97110643,0.00035089,15]
[314036890,1707940246313,-500.0,0.00035089,15]
[314036891,1707940246322,-500.0,0.00035089,15]
[314036892,1707940246332,-500.0,0.00035089,15]
[314036893,1707940246341,-500.0,0.00035089,15]
[314036894,1707940246350,-73922.17170997,0.0003509,2]
[314036895,1707940246360,-1000.0,0.000351,2]
[314036896,1707940246369,-645.35794193,0.0003521,9]
[314036897,1707940246378,-153.4382415,0.00035232,2]
[314036898,1707940246387,-12437.44257752,0.00035248,2]
[314036900,1707940246397,-3262.87900614,0.00035248,2]
[314036902,1707940246406,-176.02240479,0.00035251,2]
[314036904,1707940246416,-180.0,0.00035284,2]
[314036906,1707940246426,-914.99,0.00035328,2]
[314036908,1707940246434,-814.76,0.00035328,2]
[314036910,1707940246443,-405.09,0.00035328,2]
[314036912,1707940246453,-914.99,0.00035328,2]
[314036914,1707940246463,-914.99,0.00035328,2]
[314036916,1707940246472,-405.09,0.00035328,2]
[314036918,1707940246482,-914.99,0.00035328,2]
[314036920,1707940246492,-405.09,0.00035328,2]
[314036922,1707940246500,-405.09,0.00035328,2]
[314036924,1707940246509,-914.99,0.00035328,2]
[314036926,1707940246518,-405.09,0.00035328,2]
[314036928,1707940246527,-914.99,0.00035328,2]
[314036930,1707940246536,-914.99,0.00035328,2]
[314036932,1707940246545,-405.09,0.00035328,2]
[314036934,1707940246555,-405.09,0.00035328,2]
[314036936,1707940246752,-902.74,0.00035328,2]
[314036937,1707940246763,-914.99,0.00035328,2]
[314036938,1707940246772,-405.09,0.00035328,2]
[314036939,1707940246781,-914.99,0.00035328,2]
[314036940,1707940246791,-405.09,0.00035328,2]
[314036941,1707940246800,-914.99,0.00035328,2]
[314036942,1707940246809,-405.09,0.00035328,2]
[314036943,1707940246818,-405.09,0.00035328,2]
[314036944,1707940246827,-914.99,0.00035328,2]
[314036945,1707940246836,-405.09,0.00035328,2]
[314036946,1707940246845,-405.09,0.00035328,2]
[314036947,1707940246855,-914.99,0.00035328,2]
[314036948,1707940246864,-405.09,0.00035328,2]
[314036949,1707940246873,-405.09,0.00035328,2]
[314036950,1707940246882,-1841.17,0.00035328,2]
[314036951,1707940246892,-405.09,0.00035328,2]
[314036952,1707940246901,-405.09,0.00035328,2]
[314036953,1707940246910,-200.0,0.00035329,2]
[314036954,1707940246919,-499.99,0.00035329,2]
[314036955,1707940246928,-308.22134209,0.00035341,30]
[314036956,1707940246937,-25439.2916553,0.00035342,3]
[314036957,1707940246946,-93023.9964,0.00035342,2]
[314036958,1707940246955,-15610.117943,0.00035342,2]
[314036959,1707940246964,-343.41,0.00035366,2]
[314036960,1707940246973,-158.19006431,0.00035436,2]
[314036961,1707940246983,-21016.59,0.00035455,30]
[314036962,1707940246992,-1871.03,0.00035455,2]
[314036963,1707940247001,-3087.45,0.00035455,2]
[314036964,1707940247011,-15791.89,0.00035455,2]
[314036965,1707940247020,-10191.44,0.00035455,2]
[314036966,1707940247030,-5021.03387811,0.00035516,8]
[314036967,1707940247039,-168.59445535,0.00035519,2]
[314036968,1707940247048,-1401.8054379,0.00035528,2]
[314036969,1707940247061,-4853.7921676,0.00035528,2]
[314036970,1707940247071,-70424.6354566,0.00035552,2]
[314036971,1707940247080,-197.4739308,0.00035552,2]
[314036972,1707940247089,-1413.63222,0.000356,2]
[314036973,1707940247099,-842.318178,0.000356,2]
[314036974,1707940247109,-165995.39270763,0.00035615,2]
[314036975,1707940247118,-517.78567072,0.00035616,4]
[314036976,1707940247128,-946.31124793,0.00035616,4]
[314036977,1707940247137,-168.26749515,0.00035616,4]
[314036978,1707940247147,-659.33855129,0.00035616,5]
[314036979,1707940247156,-202.13886159,0.00035616,4]
[314036980,1707940247165,-305.09660322,0.00035616,4]
[314036981,1707940247174,-500.0,0.00035616,2]
[314036982,1707940247184,-46702.0,0.00035616,4]
[314036983,1707940247193,-1166.00507836,0.00035618,4]
[314036984,1707940247202,-155.0,0.00035618,4]
[314036985,1707940247211,-14469.71565427,0.00035618,4]
[314036986,1707940247220,-129442.407256,0.00035618,4]
[314036987,1707940247230,-2144.10452078,0.00035619,4]
[314036988,1707940247239,-530.92240438,0.00035619,15]
[314036989,1707940247248,-331.74100714,0.00035619,4]
[314036990,1707940247258,-582.78,0.000357,7]
[314036991,1707940247267,-2210.19,0.000357,7]
[314036992,1707940247277,-2609.27,0.000357,7]
[314036993,1707940247286,-500.0,0.00035763,2]
[314036994,1707940247297,-5000.0,0.000359,3]
[314036995,1707940247306,-158.19006431,0.000359,2]
[314036996,1707940247316,-217.71684084,0.000359,2]
[314036997,1707940247325,-823.10122078,0.000359,2]
[314036998,1707940247335,-500.0,0.0003591,2]
[314036999,1707940247344,-5021.0338781,0.00035915,8]
[314037000,1707940247354,-12437.44257752,0.00035954,2]
[314037001,1707940247364,-3262.87900614,0.00035954,2]
[314037002,1707940247374,-5000.0,0.0003598,2]
[314037003,1707940247384,-48571.52,0.0003598,4]
[314037004,1707940247395,-100000.0,0.00036,16]
[314037005,1707940247405,-4552.23575525,0.00036,2]
[314037006,1707940247415,-50513.65,0.00036,4]
[314037007,1707940247425,-66024.29903548,0.00036,7]
[314037008,1707940247435,-1979.085108,0.00036,2]
[314037009,1707940247444,-1000.0,0.00036,6]
[314037010,1707940247454,-49145.33605614,0.00036,2]
[314037011,1707940247467,-51238.19679551,0.00036,2]
[314037012,1707940247807,-5929.60589135,0.00036,2]
[314037013,1707940247819,-17840.134792,0.00036,2]
[314037014,1707940247830,-1179.245449,0.00036,2]
[314037015,1707940247839,-199.32249659,0.00036,2]
[314037016,1707940247848,-500.0,0.00036057,2]
[314037017,1707940247858,-371.39,0.00036131,7]
[314037018,1707940247867,-3455.89715339,0.00036131,7]
[314037019,1707940247877,-229.54807154,0.00036131,7]
[314037020,1707940247888,-8722.72300404,0.00036136,2]
[314037021,1707940247897,-500.0,0.00036204,2]
[314037022,1707940247906,-1098.7123703,0.00036211,2]
[314037023,1707940247915,-3825.2634227,0.00036211,2]
[314037024,1707940247925,-677.0,0.0003623,2]
[314037025,1707940247934,-55169.419146,0.00036236,2]
[314037026,1707940247943,-197.4739308,0.00036236,2]
[314037027,1707940247952,-341.2,0.00036277,2]
[314037028,1707940247961,-405.09,0.00036286,2]
[314037029,1707940247970,-405.09,0.00036286,2]
[314037030,1707940247979,-5021.0338781,0.00036313,9]
[314037031,1707940247989,-500.0,0.0003635,2]
[314037032,1707940247998,-169.81,0.00036438,2]
[314037033,1707940248008,-500.0,0.00036497,2]
[314037034,1707940248017,-610.68755709,0.00036531,2]
[314037035,1707940248026,-164.0,0.000366,7]
[314037036,1707940248035,-153.43824146,0.00036604,2]
[314037037,1707940248045,-500.0,0.00036644,2]
[314037038,1707940248054,-2941.64584792,0.00036655,3]
[314037039,1707940269774,500.0,0.00023,2]
[314037040,1707940269801,500.0,0.00023,2]
[314037041,1707940269845,150.0,0.00023,2]
[314037042,1707940269873,150000.0,0.00023,2]
[314037043,1707940269919,1011374.009906,0.00023,2]
[314037044,1707940280972,8808.12139388,9e-05,2]
[314037045,1707940291963,291.44173473,0.0001,2]
[314037046,1707940427968,6653.0,0.0002,2]
[314037047,1707940432240,113347.0,0.00023,2]
[314037048,1707940432262,601369.6865214,0.00023,2]
[314037050,1707940449152,3469.68155368,0.0002,2]
[314037055,1707940468407,3930.22210375,0.00025,30]
[314037056,1707940468432,3255.06950375,0.00025,30]
[314037074,1707941191784,208.0,0.00021962,2]
[314037075,1707941193609,169.32,0.0002299,2]
[314037093,1707941432055,-208.0,0.00023605,2]
[314037094,1707941432064,-176.94784805,0.00023999,2]
[314037095,1707941432073,-224.0,0.00024098,2]
[314037096,1707941432083,-203.22520032,0.00024099,2]
[314037097,1707941432094,-195.93866476,0.000242,2]
[314037098,1707941432761,-637.63273762,0.000242,2]
[314037099,1707941432770,-316.31424988,0.0002425,2]
[314037100,1707941432779,-208.0,0.00025249,2]
[314037101,1707941432788,-208.0,0.00026893,2]
[314037102,1707941432797,-1000.0,0.000271,2]
[314037103,1707941432806,-396.32,0.0002713,2]
[314037104,1707941432817,-499.99,0.0002713,2]
[314037105,1707941432826,-150.0,0.00027199,2]
[314037106,1707941432835,-150.99,0.00027199,2]
[314037107,1707941432844,-150.99,0.00027199,2]
[314037108,1707941432853,-4944.19719789,0.000272,2]
[314037109,1707941432878,-270.20327946,0.000272,2]
[314037110,1707941432888,-157.78621847,0.000273,2]
[314037111,1707941432897,-1001.0,0.000274,2]
[314037112,1707941432906,-150.0,0.00027647,2]
[314037113,1707941432915,-150.0,0.00028195,2]
[314037114,1707941432924,-848.97,0.00028467,2]
[314037115,1707941432934,-43.56081282,0.00028537,2]
[314037116,1707941432946,-164.43918718,0.00028537,2]
[314037117,1707941432955,-203.22520032,0.00028547,2]
[314037118,1707941432964,-250.0,0.00028552,2]
[314037119,1707941432973,-1852.42,0.0002858,2]
[314037120,1707941432982,-134.37786979,0.000286,2]
[314037121,1707941432994,-2570.62213021,0.000286,2]
[314037122,1707941433003,-2821.18,0.00028647,2]
[314037123,1707941433013,-10.91141327,0.00028647,2]
[314037124,1707941433026,-4734.87157085,0.00028647,2]
[314037125,1707941433037,-1949.08290995,0.00028647,2]
[314037126,1707941433049,-1839.24926668,0.00028647,2]
[314037128,1707941433062,-638.14091271,0.00028647,2]
[314037131,1707941433083,-553.74088929,0.00028647,2]
[314037133,1707941433096,-12952.70560216,0.00028647,2]
[314037135,1707941433108,-339.95296193,0.00028647,2]
[314037136,1707941433121,-499.51621629,0.00028647,2]
[314037137,1707941433137,-381.82825687,0.00028647,2]
[314037138,1707941433148,-163.02191033,0.00028743,2]
[314037139,1707941433158,-3241.38,0.00028829,2]
[314037140,1707941433168,-1549.31707897,0.00028832,2]
[314037141,1707941433183,-1555.87292103,0.00028832,2]
[314037142,1707941433193,-163.25,0.00028874,10]
[314037143,1707941433202,-500.0,0.00028906,2]
[314037144,1707941433212,-250.0,0.00028933,2]
[314037145,1707941433221,-4841.34545844,0.00029,2]
[314037147,1707941438121,-321.8040296,0.00029,2]
[314037148,1707941438182,-453.93940937,0.00029,2]
[314037149,1707941438195,-753.24002018,0.00029,2]